[Event "Late-Titled-Tuesday-Blitz-June-04-2024"]
[Site "Chess.com"]
[Date "2024.06.04"]
[Round "7"]
[White "yaguigor"]
[Black "1g60-1"]
[Result "1-0"]
[WhiteElo "2612"]
[BlackElo "2451"]
[TimeControl "180+1"]
[EndTime "15:16:00 PDT"]
[Termination "yaguigor won on time"]

1. d4 {[%clk 0:03:00.9]} 1... e6 {[%clk 0:02:58]} 2. e4 {[%clk 0:02:59.1]} 2...
d5 {[%clk 0:02:57.9]} 3. Nc3 {[%clk 0:02:58.2]} 3... Bb4 {[%clk 0:02:57.6]} 4.
e5 {[%clk 0:02:57.9]} 4... Ne7 {[%clk 0:02:57.5]} 5. a3 {[%clk 0:02:58]} 5...
Bxc3+ {[%clk 0:02:56.7]} 6. bxc3 {[%clk 0:02:58.9]} 6... c5 {[%clk 0:02:56.9]}
7. Qg4 {[%clk 0:02:59.5]} 7... Qc7 {[%clk 0:02:56.5]} 8. Qxg7 {[%clk 0:02:59.5]}
8... Rg8 {[%clk 0:02:57]} 9. Qxh7 {[%clk 0:03:00.3]} 9... cxd4 {[%clk
0:02:53.4]} 10. Ne2 {[%clk 0:03:00.7]} 10... dxc3 {[%clk 0:02:53.5]} 11. f4
{[%clk 0:03:00.4]} 11... Nbc6 {[%clk 0:02:52.3]} 12. h4 {[%clk 0:03:00.7]} 12...
Bd7 {[%clk 0:02:42.8]} 13. h5 {[%clk 0:03:01.2]} 13... d4 {[%clk 0:02:32.4]} 14.
h6 {[%clk 0:02:43.3]} 14... O-O-O {[%clk 0:02:23.6]} 15. Qxf7 {[%clk 0:02:34.6]}
15... Rdf8 {[%clk 0:02:14.8]} 16. Qh5 {[%clk 0:02:34.6]} 16... Nf5 {[%clk
0:01:54.8]} 17. h7 {[%clk 0:02:31.4]} 17... Rh8 {[%clk 0:01:51.9]} 18. g4 {[%clk
0:02:28.8]} 18... Ne3 {[%clk 0:01:51.2]} 19. Bxe3 {[%clk 0:02:26.1]} 19... dxe3
{[%clk 0:01:52.1]} 20. Bg2 {[%clk 0:02:01.2]} 20... Ne7 {[%clk 0:01:46.8]} 21.
Rh3 {[%clk 0:01:52.3]} 21... Qc5 {[%clk 0:01:40.4]} 22. Qh4 {[%clk 0:01:35.8]}
22... Ng6 {[%clk 0:01:36.9]} 23. Qg3 {[%clk 0:01:34.2]} 23... Bc6 {[%clk
0:01:23.9]} 24. Bxc6 {[%clk 0:01:33.2]} 24... Qxc6 {[%clk 0:01:21.9]} 25. Qxe3
{[%clk 0:01:32.1]} 25... Qg2 {[%clk 0:01:14.8]} 26. Qxc3+ {[%clk 0:01:26.9]}
26... Kb8 {[%clk 0:01:14.8]} 27. Qf3 {[%clk 0:01:11.8]} 27... Qxf3 {[%clk
0:01:09.7]} 28. Rxf3 {[%clk 0:01:11]} 28... Rxh7 {[%clk 0:01:06.2]} 29. O-O-O
{[%clk 0:00:59.8]} 29... Nxe5 {[%clk 0:01:06.2]} 30. Rg3 {[%clk 0:00:59.7]}
30... Ng6 {[%clk 0:01:00.6]} 31. Rf1 {[%clk 0:00:56.7]} 31... Rhf7 {[%clk
0:00:58.7]} 32. Rgf3 {[%clk 0:00:36.5]} 32... Ne5 {[%clk 0:00:56.1]} 33. Re3
{[%clk 0:00:37]} 33... Nxg4 {[%clk 0:00:55.1]} 34. Rxe6 {[%clk 0:00:37.2]} 34...
Rf5 {[%clk 0:00:46.9]} 35. Kb2 {[%clk 0:00:29.6]} 35... Rc8 {[%clk 0:00:43.8]}
36. Nd4 {[%clk 0:00:25.4]} 36... Rd5 {[%clk 0:00:41.4]} 37. c3 {[%clk
0:00:23.4]} 37... a5 {[%clk 0:00:20.2]} 38. f5 {[%clk 0:00:22.2]} 38... Rf8
{[%clk 0:00:15.6]} 39. a4 {[%clk 0:00:17.7]} 39... Nh2 {[%clk 0:00:08.1]} 40.
Rf4 {[%clk 0:00:16.6]} 40... Rg8 {[%clk 0:00:03.7]} 41. Re2 {[%clk 0:00:14]}
41... Ng4 {[%clk 0:00:02.6]} 42. f6 {[%clk 0:00:13.7]} 1-0

[Event "Late-Titled-Tuesday-Blitz-June-04-2024"]
[Site "Chess.com"]
[Date "2024.06.04"]
[Round "7"]
[White "ulises2013"]
[Black "slidingknight2775"]
[Result "1-0"]
[WhiteElo "2909"]
[BlackElo "2668"]
[TimeControl "180+1"]
[EndTime "15:16:01 PDT"]
[Termination "ulises2013 won by resignation"]

1. e4 {[%clk 0:03:00.9]} 1... c5 {[%clk 0:02:59.2]} 2. g3 {[%clk 0:03:00.9]}
2... Nc6 {[%clk 0:02:58.3]} 3. Bg2 {[%clk 0:03:00.4]} 3... g6 {[%clk 0:02:58.8]}
4. Ne2 {[%clk 0:03:00.5]} 4... Bg7 {[%clk 0:02:59.3]} 5. O-O {[%clk 0:03:01.1]}
5... Nf6 {[%clk 0:02:58.6]} 6. c3 {[%clk 0:03:01.1]} 6... d5 {[%clk 0:02:48.6]}
7. exd5 {[%clk 0:03:00.5]} 7... Nxd5 {[%clk 0:02:49.5]} 8. d4 {[%clk 0:03:01.2]}
8... cxd4 {[%clk 0:02:47.1]} 9. Nxd4 {[%clk 0:03:02.1]} 9... Nxd4 {[%clk
0:02:45.9]} 10. cxd4 {[%clk 0:03:03]} 10... O-O {[%clk 0:02:46.3]} 11. Nc3
{[%clk 0:03:03.7]} 11... Be6 {[%clk 0:02:46]} 12. Qf3 {[%clk 0:03:03.6]} 12...
Nxc3 {[%clk 0:02:42.4]} 13. bxc3 {[%clk 0:03:04.5]} 13... Rc8 {[%clk 0:02:41.5]}
14. Bd2 {[%clk 0:02:59]} 14... Bc4 {[%clk 0:02:32.7]} 15. Rfb1 {[%clk
0:02:56.4]} 15... b6 {[%clk 0:02:32.6]} 16. a4 {[%clk 0:02:56.5]} 16... e6
{[%clk 0:02:24]} 17. Bf4 {[%clk 0:02:50.9]} 17... Bd5 {[%clk 0:02:18.4]} 18. Qd3
{[%clk 0:02:34.5]} 18... Bxg2 {[%clk 0:02:18.2]} 19. Kxg2 {[%clk 0:02:35.4]}
19... Qd5+ {[%clk 0:02:18.1]} 20. Kg1 {[%clk 0:02:33.6]} 20... Qc4 {[%clk
0:01:16.9]} 21. Qxc4 {[%clk 0:02:17.9]} 21... Rxc4 {[%clk 0:01:17.8]} 22. Rb3
{[%clk 0:02:18.1]} 22... Rfc8 {[%clk 0:01:15.6]} 23. Bd2 {[%clk 0:02:18.2]}
23... e5 {[%clk 0:01:07.3]} 24. dxe5 {[%clk 0:02:15.5]} 24... Bxe5 {[%clk
0:01:08.2]} 25. Raa3 {[%clk 0:02:10.6]} 25... R8c5 {[%clk 0:00:41.7]} 26. Rb5
{[%clk 0:01:54.3]} 26... Bd6 {[%clk 0:00:34.8]} 27. Rxc5 {[%clk 0:01:51]} 27...
Bxc5 {[%clk 0:00:34.8]} 28. Ra1 {[%clk 0:01:50.8]} 28... a6 {[%clk 0:00:24]} 29.
Kf1 {[%clk 0:01:50.7]} 29... Re4 {[%clk 0:00:21.3]} 30. Bh6 {[%clk 0:01:40]}
30... f5 {[%clk 0:00:21.2]} 31. f3 {[%clk 0:01:35.3]} 31... Re6 {[%clk
0:00:20.6]} 32. Rd1 {[%clk 0:01:34.6]} 32... Kf7 {[%clk 0:00:20.5]} 33. Rd8
{[%clk 0:01:33.4]} 33... Re8 {[%clk 0:00:20.3]} 34. Rd5 {[%clk 0:01:32.7]} 34...
Ke6 {[%clk 0:00:19.1]} 35. Rd3 {[%clk 0:01:31.9]} 35... Rc8 {[%clk 0:00:18.5]}
36. Ke2 {[%clk 0:01:30]} 36... Be7 {[%clk 0:00:11.7]} 37. Be3 {[%clk 0:01:29.7]}
37... Rc6 {[%clk 0:00:10.3]} 38. Kd2 {[%clk 0:01:29.5]} 38... g5 {[%clk
0:00:09.4]} 39. Kc2 {[%clk 0:01:28.4]} 39... Bd6 {[%clk 0:00:07.4]} 40. Kb3
{[%clk 0:01:28.3]} 40... h6 {[%clk 0:00:06.8]} 41. Bc1 {[%clk 0:01:27.9]} 41...
Be7 {[%clk 0:00:05.2]} 42. Re3+ {[%clk 0:01:27.9]} 42... Kd7 {[%clk 0:00:04.6]}
43. Re5 {[%clk 0:01:25.6]} 43... Rc5 {[%clk 0:00:03.6]} 44. Re2 {[%clk 0:01:25]}
44... h5 {[%clk 0:00:03.7]} 45. Ba3 {[%clk 0:01:19.6]} 45... Rxc3+ {[%clk
0:00:04.1]} 46. Kxc3 {[%clk 0:01:19.8]} 46... Bxa3 {[%clk 0:00:05]} 47. Kc4
{[%clk 0:01:20]} 47... Bd6 {[%clk 0:00:02.8]} 48. Kd5 {[%clk 0:01:20]} 48... h4
{[%clk 0:00:02.2]} 49. gxh4 {[%clk 0:01:20.3]} 49... gxh4 {[%clk 0:00:03.1]} 50.
h3 {[%clk 0:01:20.9]} 50... Bg3 {[%clk 0:00:03.5]} 51. Rb2 {[%clk 0:01:20.4]}
51... Kc7 {[%clk 0:00:02.9]} 52. Rc2+ {[%clk 0:01:20.7]} 52... Kb7 {[%clk
0:00:02.4]} 53. Rc6 {[%clk 0:01:20.8]} 53... f4 {[%clk 0:00:03]} 54. Rf6 {[%clk
0:01:18.7]} 54... b5 {[%clk 0:00:03.1]} 55. axb5 {[%clk 0:01:14.8]} 55... axb5
{[%clk 0:00:04]} 56. Kc5 {[%clk 0:01:15.2]} 56... Kc7 {[%clk 0:00:03.4]} 57.
Kxb5 {[%clk 0:01:15.6]} 57... Kd7 {[%clk 0:00:04]} 58. Kc4 {[%clk 0:01:16.2]}
58... Ke7 {[%clk 0:00:04.5]} 59. Ra6 {[%clk 0:01:16.1]} 59... Kf7 {[%clk
0:00:04.9]} 60. Kd5 {[%clk 0:01:16.7]} 60... Kg7 {[%clk 0:00:05]} 61. Ke4 {[%clk
0:01:17.3]} 61... Kf7 {[%clk 0:00:05.6]} 62. Kf5 {[%clk 0:01:17.8]} 62... Kg7
{[%clk 0:00:05.9]} 63. Rg6+ {[%clk 0:01:15.6]} 63... Kf7 {[%clk 0:00:06.3]} 64.
Rg4 {[%clk 0:01:16.5]} 64... Ke7 {[%clk 0:00:05.8]} 65. Rxf4 {[%clk 0:01:16.3]}
65... Bxf4 {[%clk 0:00:03.4]} 66. Kxf4 {[%clk 0:01:17.2]} 66... Kf6 {[%clk
0:00:04.3]} 67. Kg4 {[%clk 0:01:17.8]} 67... Ke5 {[%clk 0:00:04.4]} 68. Kxh4
{[%clk 0:01:18.2]} 68... Kf4 {[%clk 0:00:04.7]} 69. Kh5 {[%clk 0:01:18.8]} 69...
Kxf3 {[%clk 0:00:04.7]} 70. Kg5 {[%clk 0:01:18.7]} 70... Ke4 {[%clk 0:00:04.5]}
71. h4 {[%clk 0:01:19.6]} 71... Ke5 {[%clk 0:00:05.1]} 72. Kg6 {[%clk
0:01:19.8]} 72... Ke6 {[%clk 0:00:05]} 73. h5 {[%clk 0:01:20.2]} 73... Ke7
{[%clk 0:00:05.7]} 74. Kg7 {[%clk 0:01:21.1]} 74... Ke6 {[%clk 0:00:06.1]} 75.
h6 {[%clk 0:01:22]} 1-0

[Event "Late-Titled-Tuesday-Blitz-June-04-2024"]
[Site "Chess.com"]
[Date "2024.06.04"]
[Round "7"]
[White "Kiborg95"]
[Black "krzyzan94"]
[Result "1-0"]
[WhiteElo "2917"]
[BlackElo "2795"]
[TimeControl "180+1"]
[EndTime "15:16:02 PDT"]
[Termination "Kiborg95 won by checkmate"]

1. e4 {[%clk 0:03:00.9]} 1... c5 {[%clk 0:02:58.3]} 2. Nc3 {[%clk 0:03:01.2]}
2... d6 {[%clk 0:02:56.1]} 3. f4 {[%clk 0:03:01.2]} 3... g6 {[%clk 0:02:54.7]}
4. Nf3 {[%clk 0:03:01.5]} 4... Bg7 {[%clk 0:02:55.2]} 5. Bb5+ {[%clk 0:03:02.2]}
5... Bd7 {[%clk 0:02:55.1]} 6. Bc4 {[%clk 0:03:02.6]} 6... Nc6 {[%clk
0:02:55.5]} 7. d3 {[%clk 0:03:03]} 7... Na5 {[%clk 0:02:52.5]} 8. Bd2 {[%clk
0:03:03.1]} 8... Nxc4 {[%clk 0:02:52]} 9. dxc4 {[%clk 0:03:04]} 9... Nf6 {[%clk
0:02:49.2]} 10. Qe2 {[%clk 0:03:03.5]} 10... O-O {[%clk 0:02:47.3]} 11. O-O-O
{[%clk 0:03:00.5]} 11... a6 {[%clk 0:02:45.6]} 12. e5 {[%clk 0:03:00.9]} 12...
Ne8 {[%clk 0:02:45.2]} 13. h4 {[%clk 0:03:01.3]} 13... Bg4 {[%clk 0:02:32.9]}
14. h5 {[%clk 0:03:01.3]} 14... b5 {[%clk 0:02:28.8]} 15. hxg6 {[%clk
0:02:58.9]} 15... fxg6 {[%clk 0:02:23.6]} 16. Rh4 {[%clk 0:02:50.7]} 16... Bxf3
{[%clk 0:02:04.3]} 17. Qxf3 {[%clk 0:02:31.9]} 17... dxe5 {[%clk 0:01:59.8]} 18.
Be3 {[%clk 0:02:30.4]} 18... Nd6 {[%clk 0:01:57.8]} 19. Rdh1 {[%clk 0:02:02.6]}
19... h5 {[%clk 0:01:42.6]} 20. Qd5+ {[%clk 0:01:27.1]} 20... Nf7 {[%clk
0:01:37.6]} 21. Qe4 {[%clk 0:01:25.1]} 21... exf4 {[%clk 0:01:09.3]} 22. Nd5
{[%clk 0:01:16.2]} 22... e5 {[%clk 0:00:47.5]} 23. Qxg6 {[%clk 0:01:11.2]} 23...
Qg5 {[%clk 0:00:41.5]} 24. Ne7+ {[%clk 0:00:25.7]} 24... Qxe7 {[%clk 0:00:39]}
25. Rxh5 {[%clk 0:00:26.4]} 25... Rfd8 {[%clk 0:00:27.2]} 26. Bf2 {[%clk
0:00:16]} 26... Qf6 {[%clk 0:00:26.9]} 27. Qg4 {[%clk 0:00:15.4]} 27... e4
{[%clk 0:00:26.8]} 28. c3 {[%clk 0:00:14.9]} 28... e3 {[%clk 0:00:26.9]} 29. Bh4
{[%clk 0:00:15.5]} 29... Ne5 {[%clk 0:00:15.4]} 30. Qh3 {[%clk 0:00:07.5]} 30...
Qg6 {[%clk 0:00:14.3]} 31. Rg5 {[%clk 0:00:05.6]} 31... Qd3 {[%clk 0:00:10]} 32.
Qe6+ {[%clk 0:00:05.5]} 32... Nf7 {[%clk 0:00:07.8]} 33. Rxg7+ {[%clk
0:00:05.1]} 33... Kxg7 {[%clk 0:00:07.2]} 34. Bf6+ {[%clk 0:00:05.7]} 34... Kf8
{[%clk 0:00:03.7]} 35. Be7+ {[%clk 0:00:04.1]} 35... Kg7 {[%clk 0:00:01.7]} 36.
Qg4+ {[%clk 0:00:03.5]} 36... Ng5 {[%clk 0:00:01.5]} 37. Qxg5+ {[%clk
0:00:03.6]} 37... Qg6 {[%clk 0:00:01.5]} 38. Bf6+ {[%clk 0:00:02.7]} 38... Kf7
{[%clk 0:00:02.1]} 39. Qe5 {[%clk 0:00:03.1]} 39... e2 {[%clk 0:00:01.7]} 40.
Qe7+ {[%clk 0:00:03.4]} 40... Kg8 {[%clk 0:00:02.2]} 41. Rh8# {[%clk 0:00:03.9]}
1-0

[Event "Late-Titled-Tuesday-Blitz-June-04-2024"]
[Site "Chess.com"]
[Date "2024.06.04"]
[Round "7"]
[White "profedechess93"]
[Black "cthulhuuu"]
[Result "1-0"]
[WhiteElo "2600"]
[BlackElo "2434"]
[TimeControl "180+1"]
[EndTime "15:16:03 PDT"]
[Termination "profedechess93 won on time"]

1. e4 {[%clk 0:03:00.9]} 1... d6 {[%clk 0:02:55.9]} 2. d4 {[%clk 0:03:00.5]}
2... Nf6 {[%clk 0:02:55.7]} 3. Nc3 {[%clk 0:03:00.9]} 3... c6 {[%clk 0:02:53.5]}
4. f3 {[%clk 0:02:58.9]} 4... b5 {[%clk 0:02:52.3]} 5. Be3 {[%clk 0:02:57.2]}
5... e5 {[%clk 0:02:50.2]} 6. Qd2 {[%clk 0:02:34]} 6... Be7 {[%clk 0:02:41]} 7.
O-O-O {[%clk 0:02:29.8]} 7... Qc7 {[%clk 0:02:29.9]} 8. g4 {[%clk 0:02:24.9]}
8... O-O {[%clk 0:02:21.4]} 9. g5 {[%clk 0:02:19.6]} 9... Nh5 {[%clk 0:02:16.8]}
10. Nce2 {[%clk 0:02:20]} 10... f5 {[%clk 0:02:01.8]} 11. gxf6 {[%clk
0:02:06.3]} 11... Bxf6 {[%clk 0:01:58.2]} 12. Ng3 {[%clk 0:02:01.5]} 12... Nf4
{[%clk 0:01:46.2]} 13. N1e2 {[%clk 0:01:56.8]} 13... Qf7 {[%clk 0:01:41.2]} 14.
Kb1 {[%clk 0:01:54.9]} 14... Be6 {[%clk 0:01:40.1]} 15. a3 {[%clk 0:01:37.5]}
15... a5 {[%clk 0:01:39.9]} 16. dxe5 {[%clk 0:01:36]} 16... dxe5 {[%clk
0:01:34.5]} 17. Bc5 {[%clk 0:01:28.5]} 17... Re8 {[%clk 0:01:29.1]} 18. Nf5
{[%clk 0:01:28.2]} 18... Bxf5 {[%clk 0:01:22.6]} 19. exf5 {[%clk 0:01:29.1]}
19... Na6 {[%clk 0:01:20.4]} 20. Bb6 {[%clk 0:01:05.7]} 20... Nd5 {[%clk
0:00:41.6]} 21. Bxa5 {[%clk 0:01:02.1]} 21... Nc5 {[%clk 0:00:34.5]} 22. Nc1
{[%clk 0:00:55.1]} 22... e4 {[%clk 0:00:30.2]} 23. c4 {[%clk 0:00:37.9]} 23...
e3 {[%clk 0:00:12.4]} 24. Qc2 {[%clk 0:00:34.8]} 24... Nf4 {[%clk 0:00:03.8]}
25. Bb4 {[%clk 0:00:31.2]} 25... Na6 {[%clk 0:00:04.1]} 26. Bd6 {[%clk
0:00:26.5]} 26... e2 {[%clk 0:00:03.3]} 27. Nxe2 {[%clk 0:00:22.1]} 27... Nxe2
{[%clk 0:00:02.2]} 28. Bxe2 {[%clk 0:00:23]} 28... Rad8 {[%clk 0:00:02.1]} 29.
c5 {[%clk 0:00:21.4]} 29... Nc7 {[%clk 0:00:01.1]} 30. Bd3 {[%clk 0:00:20.5]}
30... Nd5 {[%clk 0:00:01.6]} 31. Rde1 {[%clk 0:00:19.1]} 31... Ne3 {[%clk
0:00:02]} 32. Qd2 {[%clk 0:00:18.8]} 32... Nc4 {[%clk 0:00:02.2]} 33. Bxc4
{[%clk 0:00:16.2]} 33... Qxc4 {[%clk 0:00:03]} 34. Qc2 {[%clk 0:00:16.4]} 34...
Qd4 {[%clk 0:00:02.9]} 35. Rd1 {[%clk 0:00:14.9]} 35... Qe3 {[%clk 0:00:02.3]}
36. Ka2 {[%clk 0:00:12.7]} 36... b4 {[%clk 0:00:02.2]} 37. Qb3+ {[%clk
0:00:11.5]} 1-0

[Event "Late-Titled-Tuesday-Blitz-June-04-2024"]
[Site "Chess.com"]
[Date "2024.06.04"]
[Round "7"]
[White "The_Sherman_Variation"]
[Black "Quattroporte300"]
[Result "1-0"]
[WhiteElo "2599"]
[BlackElo "2446"]
[TimeControl "180+1"]
[EndTime "15:16:06 PDT"]
[Termination "The_Sherman_Variation won on time"]

1. b3 {[%clk 0:03:00.9]} 1... e5 {[%clk 0:02:59.2]} 2. Bb2 {[%clk 0:03:01.5]}
2... Nc6 {[%clk 0:02:59.5]} 3. e3 {[%clk 0:03:01.7]} 3... Nf6 {[%clk 0:02:59.8]}
4. Bb5 {[%clk 0:03:00.9]} 4... Bd6 {[%clk 0:03:00.4]} 5. Nf3 {[%clk 0:02:59.4]}
5... Qe7 {[%clk 0:02:59.6]} 6. Bxc6 {[%clk 0:02:56.7]} 6... dxc6 {[%clk
0:02:59.5]} 7. d4 {[%clk 0:02:57]} 7... e4 {[%clk 0:02:56.7]} 8. Ne5 {[%clk
0:02:57.1]} 8... O-O {[%clk 0:02:53.7]} 9. O-O {[%clk 0:02:55.9]} 9... Bxe5
{[%clk 0:02:47.6]} 10. dxe5 {[%clk 0:02:56.8]} 10... Ng4 {[%clk 0:02:47.9]} 11.
Qd4 {[%clk 0:02:53.7]} 11... Bf5 {[%clk 0:02:32.8]} 12. h3 {[%clk 0:02:45]}
12... Rad8 {[%clk 0:02:29.8]} 13. Qc3 {[%clk 0:02:41.2]} 13... Nh6 {[%clk
0:02:21.3]} 14. Nd2 {[%clk 0:02:41.1]} 14... Qg5 {[%clk 0:02:07]} 15. Kh2 {[%clk
0:02:31.2]} 15... Rfe8 {[%clk 0:02:03.5]} 16. Rad1 {[%clk 0:02:27.4]} 16... Re6
{[%clk 0:01:58.5]} 17. f4 {[%clk 0:02:04.4]} 17... Qh4 {[%clk 0:01:44.6]} 18.
Nc4 {[%clk 0:01:52]} 18... Rde8 {[%clk 0:00:48.4]} 19. Qe1 {[%clk 0:01:49.4]}
19... Qh5 {[%clk 0:00:42.2]} 20. Na5 {[%clk 0:01:41.6]} 20... b6 {[%clk
0:00:39.6]} 21. Nc4 {[%clk 0:01:35.9]} 21... Rg6 {[%clk 0:00:39]} 22. e6 {[%clk
0:01:31.8]} 22... Rgxe6 {[%clk 0:00:30.8]} 23. Ne5 {[%clk 0:01:29.3]} 23... Ng4+
{[%clk 0:00:25.4]} 24. Nxg4 {[%clk 0:01:28.5]} 24... Bxg4 {[%clk 0:00:25.7]} 25.
Rd7 {[%clk 0:01:18.1]} 25... Rh6 {[%clk 0:00:23.7]} 26. Qc3 {[%clk 0:01:08.2]}
26... f6 {[%clk 0:00:20]} 27. Rd2 {[%clk 0:00:38.5]} 27... Bxh3 {[%clk
0:00:13.2]} 28. gxh3 {[%clk 0:00:36.5]} 28... Qxh3+ {[%clk 0:00:13.9]} 29. Kg1
{[%clk 0:00:37.1]} 29... Rg6+ {[%clk 0:00:12.8]} 30. Kf2 {[%clk 0:00:37.1]}
30... Rg2+ {[%clk 0:00:08.4]} 31. Ke1 {[%clk 0:00:37.3]} 31... Qg3+ {[%clk
0:00:08.8]} 32. Kd1 {[%clk 0:00:37]} 32... Rg1 {[%clk 0:00:05.2]} 33. Qc4+
{[%clk 0:00:33.5]} 33... Kh8 {[%clk 0:00:04.4]} 34. Kc1 {[%clk 0:00:29]} 34...
Rxf1+ {[%clk 0:00:04.2]} 35. Qxf1 {[%clk 0:00:29.9]} 35... Qxe3 {[%clk
0:00:04.7]} 36. Bd4 {[%clk 0:00:28.7]} 36... Qg3 {[%clk 0:00:04.4]} 37. Rg2
{[%clk 0:00:26.4]} 37... Qh4 {[%clk 0:00:03.4]} 38. Kb2 {[%clk 0:00:22.7]} 38...
Qh6 {[%clk 0:00:03.6]} 39. f5 {[%clk 0:00:21.1]} 39... c5 {[%clk 0:00:03.7]} 40.
Bc3 {[%clk 0:00:20.7]} 40... e3 {[%clk 0:00:03.5]} 41. Qf3 {[%clk 0:00:19.7]}
41... Kg8 {[%clk 0:00:02.4]} 42. Re2 {[%clk 0:00:19.3]} 42... Kh8 {[%clk
0:00:02.4]} 43. Qc6 {[%clk 0:00:19.3]} 1-0

[Event "Late-Titled-Tuesday-Blitz-June-04-2024"]
[Site "Chess.com"]
[Date "2024.06.04"]
[Round "7"]
[White "DeTimmerman"]
[Black "Zhigalko_Sergei"]
[Result "0-1"]
[WhiteElo "2773"]
[BlackElo "2914"]
[TimeControl "180+1"]
[EndTime "15:16:09 PDT"]
[Termination "Zhigalko_Sergei won by resignation"]

1. b4 {[%clk 0:03:00]} 1... e5 {[%clk 0:02:57.7]} 2. Bb2 {[%clk 0:02:59.4]} 2...
Bxb4 {[%clk 0:02:57.6]} 3. Bxe5 {[%clk 0:02:59.8]} 3... Nf6 {[%clk 0:02:58.1]}
4. Nc3 {[%clk 0:03:00.3]} 4... O-O {[%clk 0:02:57.8]} 5. Bxf6 {[%clk 0:03:00.4]}
5... Qxf6 {[%clk 0:02:57.8]} 6. Nd5 {[%clk 0:03:01.3]} 6... Qd6 {[%clk
0:02:57.2]} 7. c4 {[%clk 0:03:01.7]} 7... Ba5 {[%clk 0:02:50.6]} 8. e3 {[%clk
0:03:00.6]} 8... Re8 {[%clk 0:02:47.6]} 9. Be2 {[%clk 0:02:57.2]} 9... c6 {[%clk
0:02:37.4]} 10. Nf4 {[%clk 0:02:57.4]} 10... Qh6 {[%clk 0:02:21.9]} 11. Nf3
{[%clk 0:02:51.5]} 11... Bc7 {[%clk 0:02:21.3]} 12. g3 {[%clk 0:02:51.9]} 12...
Na6 {[%clk 0:02:06.6]} 13. O-O {[%clk 0:02:41.6]} 13... Nc5 {[%clk 0:02:03.4]}
14. d4 {[%clk 0:02:34.2]} 14... Ne4 {[%clk 0:02:02.3]} 15. Bd3 {[%clk
0:02:29.1]} 15... Nf6 {[%clk 0:01:40.4]} 16. Re1 {[%clk 0:02:06.3]} 16... d6
{[%clk 0:01:35]} 17. Qc2 {[%clk 0:01:39.4]} 17... Bg4 {[%clk 0:01:32.6]} 18. Nd2
{[%clk 0:01:37.4]} 18... Re7 {[%clk 0:01:22.9]} 19. Bf5 {[%clk 0:01:35.5]} 19...
Ba5 {[%clk 0:01:20.1]} 20. Bxg4 {[%clk 0:01:05]} 20... Nxg4 {[%clk 0:01:20.3]}
21. h3 {[%clk 0:01:05.9]} 21... Nf6 {[%clk 0:01:14.7]} 22. h4 {[%clk 0:00:59.8]}
22... Rae8 {[%clk 0:01:12.5]} 23. Re2 {[%clk 0:00:57.2]} 23... Bxd2 {[%clk
0:01:12.1]} 24. Qxd2 {[%clk 0:00:56.7]} 24... Ng4 {[%clk 0:01:07.7]} 25. Ree1
{[%clk 0:00:50.3]} 25... Nf6 {[%clk 0:00:34.8]} 26. Qa5 {[%clk 0:00:50]} 26...
a6 {[%clk 0:00:27.3]} 27. Rab1 {[%clk 0:00:43.8]} 27... Ne4 {[%clk 0:00:27.5]}
28. Ng2 {[%clk 0:00:39.7]} 28... Qf6 {[%clk 0:00:26.1]} 29. Rb2 {[%clk
0:00:38.3]} 29... h6 {[%clk 0:00:25.6]} 30. Reb1 {[%clk 0:00:37.8]} 30... g5
{[%clk 0:00:24]} 31. Qe1 {[%clk 0:00:37.7]} 31... b5 {[%clk 0:00:23.6]} 32. cxb5
{[%clk 0:00:37.5]} 32... axb5 {[%clk 0:00:23.9]} 33. Rc1 {[%clk 0:00:37.8]}
33... d5 {[%clk 0:00:14]} 34. Qe2 {[%clk 0:00:26.9]} 34... Re6 {[%clk
0:00:12.2]} 35. Rbc2 {[%clk 0:00:21.4]} 35... Ra8 {[%clk 0:00:11.1]} 36. hxg5
{[%clk 0:00:13.4]} 36... hxg5 {[%clk 0:00:12]} 37. Ne1 {[%clk 0:00:12.2]} 37...
Kg7 {[%clk 0:00:08.5]} 38. Nd3 {[%clk 0:00:11.3]} 38... Rh8 {[%clk 0:00:07.7]}
39. Ne5 {[%clk 0:00:07.9]} 39... Qh6 {[%clk 0:00:06.4]} 40. Qf3 {[%clk
0:00:08.4]} 40... Qh2+ {[%clk 0:00:05.8]} 41. Kf1 {[%clk 0:00:08.6]} 41... Rf6
{[%clk 0:00:06.7]} 42. Qg2 {[%clk 0:00:05]} 42... Nxg3+ {[%clk 0:00:06.8]} 0-1